bitfinex/quotes_ETHUSD_20250319
["timestamp","ask_amount","ask_price","bid_price","bid_amount"]
[1742422069221,4.05663912,2045.5,2045.3,4.88918]
[1742422069593,4.05663912,2045.5,2045.3,9.77832]
[1742422069797,4.87823912,2045.7,2045.4,4.88901]
[1742422070308,9.76660912,2045.7,2045.3,5.66819]
[1742422070635,9.76660912,2045.7,2045.3,10.55731]
[1742422072130,4.87823912,2045.7,2045.4,4.88898]
[1742422073003,0.8216,2045.7,2045.4,4.88891]
[1742422073205,4.05663912,2045.6,2045.3,5.66825]
[1742422073412,4.05663912,2045.4,2045.3,4.712]
[1742422073658,4.84083912,2045.4,2045.1,9.60166]
[1742422074118,9.72992912,2045.4,2045.1,9.60166]
[1742422074438,9.72992912,2045.4,2045.0,10.94976]
[1742422074439,4.05663912,2045.2,2045.0,10.94976]
[1742422074615,4.05663912,2045.2,2045.0,25.103564]
[1742422075045,9.72992912,2045.4,2045.1,4.88973]
[1742422075413,4.84083912,2045.4,2045.1,4.88973]
[1742422075832,9.72986912,2045.4,2045.1,4.88973]
[1742422076651,0.11236545,2045.3,2045.1,4.88973]
[1742422077154,4.05663912,2045.2,2045.0,15.66176]
[1742422077343,4.16899536,2045.2,2045.0,15.66176]
[1742422077542,4.16899536,2045.2,2045.0,9.60176]
[1742422079253,0.11235624,2045.2,2045.1,4.88973]
[1742422079624,4.05663912,2045.4,2045.1,4.88973]
[1742422079963,0.10834091,2045.3,2045.1,9.77924]
[1742422080257,4.05663912,2045.4,2045.1,4.88951]
[1742422080422,0.10832951,2045.2,2045.1,9.77911]
[1742422080620,4.05663912,2045.4,2045.1,6.7498145]
[1742422080841,0.10772229,2045.3,2045.1,4.88951]
[1742422081042,8.94565912,2045.4,2045.1,4.88951]
[1742422081246,0.10772229,2045.3,2045.1,4.88951]
[1742422081442,4.05663912,2045.4,2045.1,4.88951]
[1742422081646,0.10772229,2045.3,2045.1,4.88951]
[1742422081851,4.05663912,2045.4,2045.1,4.88951]
[1742422082022,0.10772229,2045.3,2045.1,4.88951]
[1742422082224,4.05663912,2045.4,2045.1,4.88951]
[1742422082534,0.10772229,2045.3,2045.1,4.88951]
[1742422082859,4.05663912,2045.4,2045.1,4.88951]
[1742422083042,0.10771308,2045.2,2045.1,4.88951]
[1742422083351,4.05663912,2045.4,2045.1,4.88951]
[1742422083846,0.10765968,2045.3,2045.1,4.88951]
[1742422084154,4.05663912,2045.4,2045.1,4.88951]
[1742422084357,0.10765048,2045.2,2045.1,4.88951]
[1742422084535,4.05663912,2045.4,2045.1,4.88951]
[1742422084721,0.10765048,2045.2,2045.1,4.88951]
[1742422084925,4.05663912,2045.4,2045.1,4.88951]
[1742422085124,0.10765048,2045.2,2045.1,4.88951]
[1742422085361,4.05663912,2045.4,2045.1,4.88951]
[1742422085557,0.10765048,2045.2,2045.1,4.88951]
[1742422085762,4.05663912,2045.4,2045.1,4.88951]
[1742422085963,0.10765048,2045.2,2045.1,4.88951]
[1742422086127,4.05663912,2045.4,2045.1,4.88951]
[1742422086328,0.10765048,2045.2,2045.1,4.88951]
[1742422086643,5.69073,2045.6,2045.2,4.88941]
[1742422086844,9.74736912,2045.6,2045.2,4.88941]
[1742422087261,4.05663912,2045.6,2045.4,4.88898]
[1742422087445,4.05663912,2045.6,2045.3,4.88922]
[1742422087632,8.94527912,2045.6,2045.2,4.88931]
[1742422087834,4.88843,2045.7,2045.3,4.88907]
[1742422088167,8.94506912,2045.7,2045.3,4.88907]
[1742422088657,8.94506912,2045.7,2045.3,9.77823]
[1742422089022,4.05663912,2045.7,2045.4,4.88901]
[1742422089455,4.05663912,2045.5,2045.3,4.88907]
[1742422089759,4.05663912,2045.5,2045.2,5.930321]
[1742422090463,4.87093912,2045.5,2045.2,10.819671]
[1742422090665,4.05663912,2045.5,2045.3,4.88923]
[1742422091669,0.10717115,2045.4,2045.3,4.88923]
[1742422091845,0.10717115,2045.4,2045.3,6.0518931]
[1742422092049,14.64781912,2045.7,2045.3,6.0518931]
[1742422092246,0.10718956,2045.6,2045.3,4.88923]
[1742422092573,0.10718956,2045.6,2045.4,4.88901]
[1742422092776,0.10718956,2045.6,2045.3,4.88917]
[1742422093976,4.99579956,2045.6,2045.3,4.88917]
[1742422095073,4.05663912,2045.5,2045.2,4.88948]
[1742422095478,0.10718562,2045.4,2045.2,4.88948]
[1742422096238,0.10718562,2045.4,2045.2,9.77882]
[1742422096441,0.10718562,2045.4,2045.3,4.88925]
[1742422096656,0.10718562,2045.4,2045.2,4.88947]
[1742422096852,4.05663912,2045.3,2045.1,7.712]
[1742422097081,9.75326912,2045.3,2045.1,4.712]
[1742422097442,0.1071672,2045.2,2045.1,4.712]
[1742422098159,0.1071672,2045.2,2045.0,6.06]
[1742422098479,0.1071672,2045.2,2045.0,10.772]
[1742422099083,8.94636912,2045.1,2044.7,5.70057]
[1742422099253,4.05663912,2045.0,2044.7,9.60269]
[1742422099573,4.05663912,2045.0,2044.7,9.60256]
[1742422099881,0.10707656,2044.9,2044.7,11.132896]
[1742422103382,0.10707656,2044.9,2044.7,9.60256]
[1742422105611,0.10707656,2044.9,2044.7,14.49307]
[1742422106172,0.10707656,2044.9,2044.7,9.60251]
[1742422108116,0.10707656,2044.9,2044.7,14.49312]
[1742422108810,0.10707656,2044.9,2044.7,9.60251]
[1742422109907,0.10707656,2044.9,2044.7,14.49307]
[1742422110111,0.10707656,2044.9,2044.8,5.71995]
[1742422110406,4.88973,2045.1,2044.8,5.71995]
[1742422110611,0.1069653,2044.9,2044.8,5.71995]
[1742422110785,13.83581912,2045.2,2044.8,5.71995]
[1742422110988,0.1069653,2044.9,2044.8,5.71995]
[1742422111173,4.88977,2045.1,2044.8,7.252196]
[1742422111374,0.1069631,2044.9,2044.8,4.89045]
[1742422111617,8.94662912,2045.0,2044.7,9.60251]
[1742422111782,0.1069631,2044.9,2044.7,9.60251]
[1742422112116,0.1069631,2044.9,2044.7,4.712]
[1742422113014,4.9972231,2044.9,2044.5,4.891]
[1742422113220,8.94717912,2044.8,2044.5,4.712]
[1742422113381,8.94717912,2044.8,2044.5,9.60313]
[1742422113581,0.10675508,2044.7,2044.5,9.60313]
[1742422113892,0.10675508,2044.7,2044.5,4.712]
[1742422114086,0.10675508,2044.7,2044.5,9.60308]
[1742422114282,0.10675508,2044.7,2044.6,4.89093]
[1742422114888,9.70840912,2045.0,2044.6,9.78186]
[1742422115091,0.10663286,2044.9,2044.7,4.89069]
[1742422115291,0.10663286,2044.9,2044.7,4.89062]
[1742422115509,0.10663286,2044.9,2044.8,4.89045]
[1742422116315,0.10629109,2044.9,2044.8,9.7809]
[1742422116502,9.70331912,2045.2,2044.8,9.7809]
[1742422116675,0.10629109,2044.9,2044.8,9.7809]
[1742422116875,4.05663912,2045.2,2044.9,4.88999]
[1742422117075,0.1063161,2045.1,2044.9,14.49299]
[1742422117315,4.87673912,2045.4,2045.0,4.88997]
[1742422117614,4.05663912,2045.4,2045.2,9.7789]
[1742422117814,4.05663912,2045.4,2045.2,4.88937]
[1742422118618,4.05663912,2045.4,2045.2,9.77878]
[1742422118782,4.05663912,2045.4,2045.2,4.88936]
[1742422119183,4.05663912,2045.4,2045.2,9.77875]
[1742422119621,4.05663912,2045.4,2045.2,4.88936]
[1742422120015,4.05663912,2045.4,2045.2,5.948738]
[1742422120206,5.70877,2045.6,2045.3,4.88915]
[1742422120207,4.87673912,2045.6,2045.3,4.88915]
[1742422120403,9.76528912,2045.6,2045.3,4.88915]
[1742422120582,4.05663912,2045.4,2045.1,4.8897]
[1742422120982,4.05663912,2045.2,2045.0,4.88995]
[1742422121203,4.05663912,2045.2,2045.0,7.026739]
[1742422121717,0.10653769,2045.1,2045.0,5.136789]
[1742422122108,4.05663912,2045.2,2045.0,5.136789]
[1742422122307,0.10656267,2045.1,2045.0,3.0]
[1742422122709,4.05663912,2045.2,2045.0,7.88997]
[1742422123006,4.05663912,2045.2,2045.1,4.88973]
[1742422123208,0.10656267,2045.1,2045.0,7.88984]
[1742422123525,0.10656486,2045.1,2045.0,7.88984]
[1742422123747,4.05663912,2045.2,2045.0,9.639049]
[1742422123926,0.10656925,2045.1,2045.0,9.639049]
[1742422124121,4.05663912,2045.2,2045.0,7.88984]
[1742422124626,0.10657145,2045.1,2045.0,7.88984]
[1742422124919,4.05663912,2045.2,2045.0,7.88984]
[1742422125219,0.10657145,2045.1,2045.0,7.88984]
[1742422125420,0.10657145,2045.1,2045.0,9.639049]
[1742422125608,5.71706,2045.3,2045.0,9.639049]
[1742422125810,5.71706,2045.3,2045.0,7.88984]
[1742422126013,0.10658066,2045.2,2045.0,7.88984]
[1742422126186,0.10658066,2045.2,2045.0,12.77963]
[1742422126393,13.83488912,2045.4,2045.0,7.88979]
[1742422126595,0.10657145,2045.1,2045.0,7.88979]
[1742422126792,13.83488912,2045.4,2045.0,7.88979]
[1742422126993,0.10657145,2045.1,2045.0,4.88979]
[1742422127214,4.88927,2045.3,2045.0,4.88979]
[1742422127422,0.10657145,2045.1,2045.0,4.88979]
[1742422127626,4.88927,2045.3,2045.0,4.88979]
[1742422127802,0.10657145,2045.1,2045.0,4.88979]
[1742422127993,4.88927,2045.3,2045.0,4.88979]
[1742422128325,0.8278,2045.5,2045.2,4.88941]
[1742422128709,0.10662184,2045.4,2045.2,4.88941]
[1742422130201,9.05232096,2045.4,2045.1,4.8897]
[1742422130397,13.94152096,2045.4,2045.0,4.88995]
[1742422130758,9.05232096,2045.4,2045.0,4.88995]
[1742422130936,10.1126489,2045.4,2045.0,9.60095]
[1742422131627,15.0018289,2045.4,2045.0,9.60095]
[1742422133145,4.88929,2045.3,2045.0,9.60095]
[1742422133297,4.99209895,2045.3,2045.0,9.60095]
[1742422134743,4.05663912,2045.2,2045.0,4.711]
[1742422135044,4.15945709,2045.2,2045.0,9.60096]
[1742422135232,0.10281797,2045.2,2045.0,14.49081]
[1742422135540,8.94570912,2045.4,2045.0,11.131311]
[1742422135742,0.10281096,2045.1,2045.0,9.60085]
[1742422135900,8.94570912,2045.4,2045.0,9.60085]
[1742422136102,0.10282937,2045.3,2045.0,9.60085]
[1742422136323,8.94570912,2045.4,2045.0,9.60085]
[1742422136644,0.10282017,2045.2,2045.0,9.60085]
[1742422136946,13.83487912,2045.4,2045.0,9.60085]
[1742422137102,0.10281096,2045.1,2045.0,9.60085]
[1742422137305,13.83487912,2045.4,2045.0,9.60085]
[1742422137606,0.10282937,2045.3,2045.0,9.60085]
[1742422137940,0.10281797,2045.2,2045.0,9.60085]
[1742422138127,8.94570912,2045.4,2045.0,9.60085]
[1742422138442,10.48397688,2045.4,2045.1,4.88973]
[1742422140338,10.48397688,2045.4,2045.0,9.60085]
[1742422140545,10.48397688,2045.4,2045.0,14.49067]
[1742422140749,8.94570912,2045.4,2045.0,14.49067]
[1742422141050,4.05663912,2045.4,2045.1,4.88969]
[1742422141211,4.05663912,2045.4,2045.1,5.67229]
[1742422141411,4.05663912,2045.4,2045.2,4.88949]
[1742422141742,4.05663912,2045.4,2045.1,5.67229]
[1742422141939,8.94569912,2045.4,2045.1,5.67229]
[1742422142241,8.94569912,2045.4,2045.1,4.88969]
[1742422142642,4.05663912,2045.4,2045.1,4.88969]
[1742422144647,8.94565912,2045.4,2045.1,4.88969]
[1742422144940,8.94565912,2045.4,2045.0,14.49076]
[1742422146040,4.05663912,2045.4,2045.1,4.88962]
[1742422146342,15.68751912,2045.7,2045.3,4.88917]
[1742422146638,10.79913912,2045.7,2045.3,4.88917]
[1742422146843,10.79913912,2045.7,2045.4,4.88893]
[1742422147142,15.68753912,2045.7,2045.3,9.7783]
[1742422147328,4.05663912,2045.5,2045.1,4.88958]
[1742422147527,4.05663912,2045.3,2045.1,4.88958]
[1742422147731,4.05663912,2045.3,2045.1,5.927648]
[1742422148648,4.05663912,2045.3,2045.2,4.88949]
[1742422148943,4.05663912,2045.3,2045.1,10.817258]
[1742422149244,4.05663912,2045.3,2045.1,5.927648]
[1742422150252,4.05663912,2045.3,2045.0,9.60085]
[1742422150550,0.7651,2045.4,2045.1,4.88966]
[1742422151104,2.4294681,2045.3,2045.1,4.88966]
[1742422151538,0.10063557,2045.2,2045.1,4.88966]
[1742422151748,0.10063557,2045.2,2045.0,9.60097]
[1742422152254,0.10063557,2045.2,2045.0,4.88997]
[1742422152438,0.10063557,2045.2,2045.0,14.48981]
[1742422152640,0.10063557,2045.2,2045.0,16.018341]
[1742422153649,0.10063557,2045.2,2045.0,14.48981]
[1742422154153,0.10063557,2045.2,2045.0,9.59984]
[1742422154941,0.10063557,2045.2,2045.0,14.48965]
[1742422155150,0.10063557,2045.2,2045.1,4.88973]
[1742422156044,2.4294681,2045.5,2045.2,4.88936]
[1742422156237,2.4294681,2045.5,2045.3,4.88925]
[1742422156413,2.4294681,2045.5,2045.2,4.88936]
[1742422156613,2.4294681,2045.5,2045.2,11.307508]
[1742422157040,2.4294681,2045.4,2045.2,6.418098]
[1742422157244,5.64657,2045.6,2045.2,4.88936]
[1742422157245,8.93780741,2045.5,2045.2,4.88936]
[1742422157445,4.88901,2045.4,2045.1,4.88971]
[1742422157821,4.88901,2045.4,2045.0,9.59988]
[1742422158027,4.88901,2045.4,2045.0,14.48973]
[1742422158277,4.88901,2045.4,2045.0,9.59985]
[1742422158428,8.93876741,2045.1,2044.7,4.89055]
[1742422158622,8.93876741,2045.1,2044.8,4.71]
[1742422158827,5.66035,2045.0,2044.8,4.71]
[1742422159059,10.55053,2045.0,2044.6,30.75991]
[1742422159374,4.89023,2044.9,2044.7,4.71]
[1742422159659,10.55047,2045.0,2044.6,30.7598]
[1742422159957,10.55047,2045.0,2044.7,4.71]
[1742422160155,10.55047,2045.0,2044.6,30.7598]
[1742422160156,4.04892741,2044.9,2044.6,30.579]
[1742422160462,8.93916741,2044.9,2044.6,4.71]
[1742422160624,5.66037,2045.0,2044.6,10.36407]
[1742422160825,10.5505,2045.0,2044.6,10.36414]
[1742422161064,10.55051,2045.0,2044.6,10.36414]
[1742422162157,5.66037,2045.0,2044.7,4.89065]
[1742422162321,12.22002968,2045.0,2044.6,10.36414]
[1742422162526,5.66037,2045.0,2044.6,15.25496]
[1742422162725,5.66037,2045.0,2044.7,4.89066]
[1742422162927,10.55051,2045.0,2044.6,10.36412]
[1742422163338,8.93914741,2044.9,2044.6,9.60082]
[1742422163833,8.93914741,2044.9,2044.6,4.71]
[1742422164130,5.86147474,2044.8,2044.6,4.71]
[1742422164333,4.89053,2044.8,2044.6,4.71]
[1742422164532,8.93961741,2044.7,2044.4,9.60132]
[1742422164732,4.04892741,2044.7,2044.4,9.60132]
[1742422165464,8.93967741,2044.7,2044.4,9.60132]
[1742422165963,0.7549,2044.6,2044.4,4.71]
[1742422166624,0.0982834,2044.5,2044.4,9.60141]
[1742422167167,0.0982834,2044.5,2044.4,4.71]
[1742422167960,4.14721081,2044.5,2044.2,9.60182]
[1742422168160,4.14721081,2044.5,2044.2,9.60174]
[1742422168526,9.03839081,2044.5,2044.2,9.60174]
[1742422168787,9.03839081,2044.5,2044.2,4.89174]
[1742422168975,9.03839081,2044.5,2044.2,9.60274]
[1742422169265,4.14721081,2044.5,2044.2,14.4945]
[1742422169462,0.0982834,2044.5,2044.2,14.4945]
[1742422169765,0.0982834,2044.5,2044.2,9.60274]
[1742422170130,4.89126,2044.5,2044.2,9.60274]
[1742422170334,0.09791542,2044.4,2044.2,4.711]
[1742422170567,0.09791542,2044.4,2044.2,7.711]
[1742422170966,0.09791542,2044.4,2044.2,4.71]
[1742422171430,0.09791542,2044.4,2044.2,9.60184]
[1742422172769,5.64587,2044.6,2044.2,9.60184]
[1742422172937,0.09780335,2044.3,2044.2,9.60184]
[1742422173137,5.64587,2044.6,2044.2,9.60184]
[1742422173483,9.03805492,2044.5,2044.2,4.71]
[1742422173834,13.92939492,2044.5,2044.2,4.71]
[1742422174259,9.03805492,2044.5,2044.2,4.71]
[1742422174532,13.92941492,2044.5,2044.2,4.71]
[1742422175064,9.03805492,2044.5,2044.2,4.71]
[1742422175271,9.03805492,2044.5,2044.2,9.60186]
[1742422175435,0.09780751,2044.5,2044.4,4.89141]
[1742422175763,4.89055,2044.8,2044.3,0.7647]
[1742422175764,4.89098,2044.6,2044.3,0.7647]
[1742422175965,9.82633521,2044.5,2044.2,4.711]
[1742422176146,9.82633521,2044.5,2044.2,9.60285]
[1742422176351,9.82633521,2044.5,2044.2,4.711]
[1742422177376,4.89144,2044.4,2044.1,4.89197]
[1742422177678,9.78303,2044.4,2044.0,35.47233]
[1742422177889,0.09775009,2044.3,2044.0,9.6032]
[1742422178072,8.94120741,2044.1,2043.7,6.06]
[1742422178377,4.99006385,2044.0,2043.7,4.89298]
[1742422179189,4.99006385,2044.0,2043.6,10.60866]
[1742422179390,9.69732741,2043.9,2043.6,9.60416]
[1742422179744,4.04892741,2043.7,2043.5,30.589]
[1742422180054,4.04892741,2043.7,2043.4,4.8938]
[1742422180055,0.09743403,2043.6,2043.4,4.8938]
[1742422180484,8.94208741,2043.7,2043.4,4.8938]
[1742422180996,0.09742259,2043.6,2043.4,4.8938]
[1742422181453,4.04892741,2043.7,2043.4,4.8938]
[1742422181652,0.09688741,2043.5,2043.4,4.8938]
[1742422181875,4.04892741,2043.7,2043.4,4.8938]
[1742422182081,0.09688741,2043.5,2043.4,4.8938]
[1742422182289,4.04892741,2043.7,2043.4,4.8938]
[1742422182493,0.09688741,2043.5,2043.4,4.8938]
[1742422182672,4.04892741,2043.7,2043.4,4.8938]
[1742422182878,0.09688741,2043.5,2043.4,4.8938]
[1742422183072,4.04892741,2043.7,2043.4,4.8938]
[1742422183278,0.09688741,2043.5,2043.4,4.8938]
[1742422183490,4.04892741,2043.7,2043.4,4.8938]
[1742422183689,0.09688741,2043.5,2043.4,4.8938]
[1742422183850,4.04892741,2043.7,2043.4,4.8938]
[1742422184052,0.09688741,2043.5,2043.4,4.8938]
[1742422184550,4.04892741,2043.7,2043.4,4.8938]
[1742422184779,0.09689664,2043.6,2043.4,4.8938]
[1742422185286,4.04892741,2043.7,2043.4,9.78745]
[1742422185487,0.09688741,2043.5,2043.4,9.78745]
[1742422185689,4.04892741,2043.7,2043.4,9.78745]
[1742422185848,0.09688741,2043.5,2043.4,9.78745]
[1742422186048,4.04892741,2043.7,2043.4,4.89365]
[1742422186249,0.09688741,2043.5,2043.4,4.89365]
[1742422186462,4.04892741,2043.7,2043.4,4.89365]
[1742422187103,0.09689664,2043.6,2043.4,4.89365]
[1742422187297,0.09689664,2043.6,2043.2,7.908215]
[1742422187298,4.04892741,2043.5,2043.2,7.908215]
[1742422187462,4.04892741,2043.5,2043.2,12.620215]
[1742422187658,0.09687819,2043.4,2043.2,0.014075]
[1742422187902,4.04892741,2043.3,2043.2,0.014075]
[1742422188111,6.25133897,2043.3,2043.2,0.014075]
[1742422188413,9.84879911,2043.3,2043.2,0.014075]
[1742422189106,10.39879911,2043.3,2043.2,0.014075]
[1742422192186,9.84879911,2043.3,2043.2,0.014075]
[1742422192524,0.9058317,2043.3,2043.2,0.014075]
[1742422192692,0.9058317,2043.3,2043.2,4.908355]
[1742422192693,0.0967317,2043.3,2043.2,4.908355]
[1742422192892,0.0967317,2043.3,2043.2,6.6513615]
[1742422193097,5.99,2043.4,2043.3,4.89404]
[1742422193294,10.03892741,2043.4,2043.2,0.776775]
[1742422193628,10.03892741,2043.4,2043.2,0.014075]
[1742422195229,10.03892741,2043.4,2043.2,4.908185]
[1742422195391,10.03892741,2043.4,2043.2,0.014075]
[1742422196628,0.08581882,2043.3,2043.2,0.014075]
[1742422197107,10.03892741,2043.4,2043.2,0.014075]
[1742422197318,0.08581882,2043.3,2043.2,0.014075]
[1742422197690,10.03892741,2043.4,2043.2,0.014075]
[1742422197887,0.08581882,2043.3,2043.2,0.014075]
[1742422198524,4.04892741,2043.4,2043.2,0.014075]
[1742422198732,0.08581882,2043.3,2043.2,0.014075]
[1742422198931,5.95899344,2043.3,2043.2,0.014075]
[1742422199137,5.87317462,2043.3,2043.2,0.014075]
[1742422199294,5.95899344,2043.3,2043.2,0.014075]
[1742422202129,6.74849344,2043.3,2043.2,0.014075]
[1742422203834,1.06495344,2043.3,2043.2,0.014075]
[1742422203995,0.08581882,2043.3,2043.2,0.014075]
[1742422204420,4.04892741,2043.4,2043.2,0.014075]
[1742422204632,0.08260882,2043.3,2043.2,0.014075]
[1742422205096,4.04892741,2043.4,2043.2,0.014075]
[1742422205292,0.08260882,2043.3,2043.2,0.014075]
[1742422205692,5.99,2043.6,2043.2,0.014075]
[1742422205944,0.08263079,2043.3,2043.2,10.405655]
[1742422206094,4.83762741,2043.7,2043.3,9.78764]
[1742422206298,4.04892741,2043.7,2043.4,4.89375]
[1742422206917,8.94204741,2043.7,2043.3,4.89382]
[1742422207122,4.04892741,2043.5,2043.3,4.89382]
[1742422207708,4.04892741,2043.5,2043.3,9.78772]
[1742422208348,4.04892741,2043.5,2043.3,6.57673115]
[1742422208712,4.04892741,2043.5,2043.3,1.68291115]
[1742422208928,4.04892741,2043.5,2043.2,15.299795]
[1742422209551,4.04892741,2043.5,2043.3,4.89396]
[1742422209717,4.04892741,2043.5,2043.4,4.8938]
[1742422210613,4.04892741,2043.5,2043.3,4.89396]
[1742422211320,4.04892741,2043.5,2043.3,4.89391]
[1742422211540,0.08253221,2043.4,2043.3,4.89391]
[1742422214282,0.08253221,2043.4,2043.2,5.511375]
[1742422214455,0.08253221,2043.4,2043.2,7.726075]
[1742422215342,0.08253221,2043.4,2043.2,9.620335]
[1742422220194,4.04892741,2043.3,2043.2,0.014075]
[1742422220495,9.83510804,2043.3,2043.2,0.014075]
[1742422222306,0.89214063,2043.3,2043.2,0.014075]
[1742422222611,4.13166804,2043.3,2043.2,0.014075]
[1742422223414,9.02570804,2043.3,2043.2,0.014075]
[1742422223613,10.50028584,2043.3,2043.2,0.014075]
[1742422225309,5.60624584,2043.3,2043.2,0.014075]
[1742422225712,10.50028584,2043.3,2043.2,0.014075]
[1742422226581,0.08274063,2043.3,2043.2,4.908355]
[1742422226780,4.04892741,2043.5,2043.2,5.660955]
[1742422227011,0.08274985,2043.4,2043.3,4.8938]
[1742422227200,4.89342,2043.6,2043.2,5.660915]
[1742422227395,0.08274985,2043.4,2043.2,5.660915]
[1742422227597,4.89342,2043.6,2043.2,5.660805]
[1742422227804,0.08274063,2043.3,2043.2,5.660805]
[1742422228011,4.04892741,2043.6,2043.2,6.7163335]
[1742422228218,5.7192,2043.7,2043.3,4.89392]
[1742422228514,4.04892741,2043.6,2043.3,4.89392]
[1742422229380,0.72315847,2043.8,2043.6,4.89332]
[1742422229713,5.0212191,2044.1,2043.8,4.89284]
[1742422229918,4.04892741,2044.1,2043.8,4.89284]
[1742422230988,8.94108741,2044.1,2043.7,10.35654]
[1742422231315,4.89292,2043.8,2043.4,3.0]
[1742422231538,4.04892741,2043.6,2043.4,7.89379]
[1742422231839,4.04892741,2043.6,2043.4,4.89379]
[1742422232136,4.04892741,2043.6,2043.3,9.60487]
[1742422232293,4.04892741,2043.6,2043.3,14.49873]
[1742422232632,4.04892741,2043.6,2043.4,4.89364]
[1742422235027,4.94311315,2043.6,2043.2,5.660925]
[1742422235237,8.94287741,2043.4,2043.2,4.724075]
[1742422235899,4.89404,2043.3,2043.2,0.014075]
[1742422236197,6.27094,2043.3,2043.2,0.014075]
[1742422236423,8.88068174,2043.3,2043.2,0.014075]
[1742422237237,0.8269,2042.6,2042.3,4.89641]
[1742422237555,4.04892741,2042.9,2042.6,4.89561]
[1742422237751,4.04892741,2042.9,2042.7,4.89547]
[1742422238262,4.04892741,2042.9,2042.7,4.89538]
[1742422239036,4.04892741,2042.9,2042.6,4.89557]
[1742422240282,4.04892741,2042.9,2042.7,4.89538]
[1742422240471,0.8269,2043.0,2042.7,4.89538]
[1742422240772,10.88455,2043.1,2042.9,4.895]
[1742422240773,5.99,2043.1,2042.9,4.895]
[1742422240983,4.04892741,2043.4,2043.0,5.64728]
[1742422241135,8.94283741,2043.4,2043.0,5.64728]
[1742422241470,13.83680741,2043.4,2043.0,5.64728]
[1742422241676,0.12755705,2043.3,2043.0,5.64728]
[1742422241848,15.98874673,2043.4,2043.0,5.64728]
[1742422242056,0.12755204,2043.2,2043.1,4.89452]
[1742422242271,9.74074741,2043.6,2043.0,5.4627]
[1742422242584,9.74074741,2043.6,2043.2,4.89416]
[1742422242734,4.04892741,2043.6,2043.4,4.89379]
[1742422243086,6.03143915,2043.6,2043.3,4.894]
[1742422244745,6.03143915,2043.6,2043.3,4.89391]
[1742422244946,6.03143915,2043.6,2043.4,4.89378]
[1742422245471,4.04892741,2043.6,2043.4,4.89378]
[1742422245668,4.04892741,2043.6,2043.3,5.64661]
[1742422246077,4.84732741,2043.8,2043.3,0.7527]
[1742422246281,4.89262,2043.9,2043.6,4.8933]
[1742422246572,2.70112806,2043.9,2043.6,4.8933]
[1742422246888,15.72971741,2044.0,2043.6,4.8933]
[1742422246889,20.62225741,2044.0,2043.6,4.8933]
[1742422247074,4.89266,2043.9,2043.5,4.89353]
[1742422247567,4.89266,2043.9,2043.5,4.89343]
[1742422247883,4.89266,2043.9,2043.5,9.78686]
[1742422248083,4.89266,2043.9,2043.6,4.8933]
[1742422248264,4.89266,2043.9,2043.5,4.89343]
[1742422248954,9.78545,2043.9,2043.5,4.89343]
[1742422249153,4.89266,2043.9,2043.5,4.89343]
[1742422250582,4.04892741,2043.8,2043.5,4.89343]
[1742422251391,4.04892741,2043.8,2043.5,4.89343]
[1742422256610,0.12470491,2043.7,2043.5,4.89343]
[1742422257213,0.12470491,2043.7,2043.5,9.78686]
[1742422257518,0.12470491,2043.7,2043.5,4.89343]
[1742422258579,0.12470491,2043.7,2043.5,9.78685]
[1742422258993,0.12470491,2043.7,2043.6,5.67152]
[1742422259191,0.8246,2044.2,2043.9,4.89248]
[1742422259486,0.12473431,2044.1,2043.9,4.89248]
[1742422259677,0.12473431,2044.1,2043.9,4.89246]
[1742422260025,0.12472774,2044.0,2043.9,4.89246]
[1742422260178,0.12472774,2044.0,2043.9,4.8926]
[1742422260524,4.87352741,2044.2,2043.9,4.89256]
[1742422260692,0.12472774,2044.0,2043.9,4.89256]
[1742422260892,4.87352741,2044.2,2043.9,4.89256]
[1742422261116,0.12491699,2044.0,2043.9,4.89247]
[1742422261291,0.8246,2044.2,2043.9,4.89247]
[1742422261647,4.87352741,2044.2,2043.9,4.89247]
[1742422261855,0.12491574,2044.1,2043.9,4.89247]
[1742422262350,4.04892741,2044.0,2043.8,4.709]
[1742422262541,4.17383971,2044.0,2043.8,4.709]
[1742422263223,0.1249123,2044.0,2043.8,9.60175]
[1742422263423,11.83014915,2044.2,2043.8,9.78545]
[1742422263639,0.12490573,2043.9,2043.8,12.78545]
[1742422263843,9.76544741,2044.2,2043.8,7.8927]
[1742422264034,9.76544741,2044.2,2043.8,12.78543]
[1742422264035,0.12044274,2043.9,2043.8,12.78543]
[1742422264237,9.76544741,2044.2,2043.9,4.89258]
[1742422264536,0.12044274,2043.9,2043.8,7.8927]
[1742422264737,9.76544741,2044.2,2043.8,7.8927]
[1742422264936,0.12044274,2043.9,2043.8,7.8927]
[1742422265118,9.76544741,2044.2,2043.8,7.8927]
[1742422265660,0.12045588,2044.1,2043.8,12.78543]
[1742422266057,9.76544741,2044.2,2043.8,12.78543]
[1742422266230,0.12044931,2044.0,2043.8,12.78543]
[1742422266549,9.76544741,2044.2,2043.8,12.78543]
[1742422266757,0.12044274,2043.9,2043.8,12.78543]
[1742422266920,4.04892741,2044.2,2043.9,4.89243]
[1742422267124,4.04892741,2044.2,2043.9,9.78486]
[1742422267361,4.04892741,2044.2,2043.9,4.89243]
[1742422267780,5.99,2044.3,2044.1,4.89212]
[1742422268076,9.74253741,2044.4,2044.1,4.89212]
[1742422268259,2.06237974,2044.4,2044.1,4.89212]
[1742422268466,4.82782741,2044.6,2043.9,5.73821965]
[1742422268634,4.82782741,2044.6,2044.3,4.89164]
[1742422268635,4.04892741,2044.6,2044.3,4.89164]
[1742422268840,4.04892741,2044.6,2044.4,4.89133]
[1742422269049,4.04892741,2044.6,2044.3,4.89164]
[1742422269249,8.93986741,2044.6,2044.3,4.89164]
[1742422269425,10.99981615,2044.6,2044.3,4.89164]
[1742422270628,6.10887615,2044.6,2044.3,4.89148]
[1742422270833,4.04892741,2044.6,2044.3,4.89148]
[1742422271190,4.04892741,2044.6,2044.4,4.89138]
[1742422271457,5.99,2044.7,2044.4,4.89138]
[1742422271459,5.99,2044.7,2044.4,9.78262]
[1742422271661,0.7789,2045.0,2044.7,4.89052]
[1742422272739,4.89024,2044.9,2044.6,5.65922]